bitfinex/quotes_BTCUSD_20241110
["timestamp","ask_amount","ask_price","bid_price","bid_amount"]
[1731209082865,0.16221019,77306.0,77305.0,0.00167]
[1731209083108,0.31745121,77306.0,77305.0,0.00167]
[1731209086480,1.01346804,77306.0,77305.0,0.00167]
[1731209086677,1.01246804,77306.0,77305.0,0.00167]
[1731209089112,1.00846804,77306.0,77305.0,0.00167]
[1731209089530,1.00846804,77306.0,77305.0,0.02579783]
[1731209089739,0.84725785,77306.0,77305.0,0.02579783]
[1731209089954,0.82425785,77306.0,77305.0,0.02579783]
[1731209090184,0.82425785,77306.0,77305.0,0.10689465]
[1731209090591,0.13224102,77306.0,77305.0,0.10689465]
[1731209094991,0.32145121,77306.0,77305.0,0.02579465]
[1731209096099,0.31745121,77306.0,77305.0,0.02579465]
[1731209096555,1.00946804,77306.0,77305.0,0.02579465]
[1731209097296,1.00946804,77306.0,77305.0,0.02579908]
[1731209098741,0.84725785,77306.0,77305.0,0.02579908]
[1731209099171,0.82425785,77306.0,77305.0,0.02579908]
[1731209101139,0.82509385,77306.0,77305.0,0.02579908]
[1731209102522,0.13307702,77306.0,77305.0,0.02579908]
[1731209102723,0.13307702,77306.0,77305.0,0.00167]
[1731209102943,0.13307702,77306.0,77305.0,0.02580805]
[1731209103369,0.000836,77306.0,77305.0,0.02580805]
[1731209103565,0.000836,77306.0,77305.0,0.10160805]
[1731209104372,0.000836,77306.0,77305.0,0.20160805]
[1731209104571,0.000836,77306.0,77305.0,0.25090805]
[1731209106179,0.000836,77306.0,77305.0,0.24990426]
[1731209106426,0.13307702,77306.0,77305.0,0.02580426]
[1731209106650,0.15607702,77306.0,77305.0,0.00167]
[1731209106855,0.15607702,77306.0,77305.0,0.02581598]
[1731209108144,0.15607702,77306.0,77305.0,0.00167]
[1731209108352,0.15607702,77306.0,77305.0,0.02582511]
[1731209108559,0.84809385,77306.0,77305.0,0.02582511]
[1731209108987,0.85209385,77306.0,77305.0,0.02582511]
[1731209109222,0.85209385,77306.0,77305.0,0.00167]
[1731209109441,0.97153882,77306.0,77305.0,0.00167]
[1731209109645,0.87092345,77306.0,77305.0,0.00167]
[1731209110054,1.01366352,77306.0,77305.0,0.00167]
[1731209110264,1.09098076,77306.0,77305.0,0.00167]
[1731209110482,1.25339005,77306.0,77305.0,0.00167]
[1731209110705,1.25339005,77306.0,77284.0,0.00167]
[1731209110706,0.004,77290.0,77284.0,0.00167]
[1731209110917,0.016,77285.0,77284.0,0.00167]
[1731209111126,0.18174816,77285.0,77284.0,0.00167]
[1731209111344,0.25903563,77285.0,77284.0,0.00167]
[1731209111570,0.60324274,77285.0,77284.0,0.00167]
[1731209112234,0.50656674,77285.0,77284.0,0.00167]
[1731209112674,0.34415745,77285.0,77284.0,0.00167]
[1731209112932,0.50656674,77285.0,77284.0,0.00167]
[1731209113137,0.34315745,77285.0,77284.0,0.00167]
[1731209113351,0.20040929,77285.0,77284.0,0.00167]
[1731209113556,0.31765031,77285.0,77284.0,0.00167]
[1731209113760,0.29465031,77285.0,77284.0,0.00167]
[1731209114293,0.98666714,77285.0,77284.0,0.00167]
[1731209114889,1.00966714,77285.0,77284.0,0.00167]
[1731209115486,1.02687398,77285.0,77284.0,0.00167]
[1731209116297,1.03187398,77285.0,77284.0,0.00167]
[1731209117509,1.03087398,77285.0,77284.0,0.00167]
[1731209118156,0.86846469,77285.0,77284.0,0.00167]
[1731209118371,1.03187398,77285.0,77284.0,0.00167]
[1731209119200,1.03087398,77285.0,77284.0,0.00167]
[1731209122443,1.02687398,77285.0,77284.0,0.00167]
[1731209122649,0.84146469,77285.0,77284.0,0.00167]
[1731209127287,0.84046469,77285.0,77284.0,0.00167]
[1731209129487,0.86746469,77285.0,77284.0,0.00167]
[1731209131035,0.86346469,77285.0,77284.0,0.00167]
[1731209134210,0.86746469,77285.0,77284.0,0.00167]
[1731209135341,0.86646469,77285.0,77284.0,0.00167]
[1731209135745,0.86646469,77285.0,77271.0,0.001]
[1731209135746,0.004,77274.0,77252.0,0.049]
[1731209136010,0.083,77276.0,77262.0,0.19473438]
[1731209136011,0.023,77266.0,77262.0,0.19473438]
[1731209136230,0.023,77266.0,77252.0,0.049]
[1731209136231,0.13224102,77265.0,77252.0,0.049]
[1731209136459,0.023,77264.0,77252.0,0.049]
[1731209136686,0.13224102,77263.0,77252.0,0.049]
[1731209137144,0.13224102,77263.0,77262.0,0.000836]
[1731209137595,0.13124102,77263.0,77262.0,0.000836]
[1731209138697,0.01718854,77266.0,77262.0,0.000836]
[1731209138912,0.19473438,77272.0,77264.0,0.001]
[1731209139144,0.19473438,77272.0,77265.0,0.001]
[1731209139145,0.13224102,77271.0,77265.0,0.001]
[1731209139627,0.01662418,77276.0,77271.0,0.001]
[1731209139882,0.19473438,77272.0,77271.0,0.001]
[1731209140091,0.13224102,77275.0,77271.0,0.001]
[1731209142251,0.13197539,77275.0,77271.0,0.001]
[1731209144805,0.13197539,77275.0,77267.0,0.0264]
[1731209147757,0.13197539,77275.0,77268.0,0.02420171]
[1731209147975,0.19473438,77280.0,77269.0,0.20720171]
[1731209148199,0.19473438,77280.0,77270.0,0.12420171]
[1731209148428,0.19473438,77280.0,77271.0,0.10720171]
[1731209148667,0.19473438,77280.0,77272.0,0.02420171]
[1731209148889,0.1490465,77284.0,77272.0,0.02420171]
[1731209148890,0.13224102,77284.0,77273.0,0.02678964]
[1731209149124,0.001672,77285.0,77276.0,0.1]
[1731209149361,0.19473438,77283.0,77278.0,0.083]
[1731209149586,0.19473438,77283.0,77276.0,0.105]
[1731209149587,0.19473438,77283.0,77280.0,0.183]
[1731209150047,0.001672,77285.0,77280.0,0.183]
[1731209150920,0.001672,77285.0,77281.0,0.16287237]
[1731209151130,0.001672,77285.0,77281.0,0.16545992]
[1731209151364,0.001672,77285.0,77282.0,0.183]
[1731209152027,0.001672,77285.0,77283.0,0.16287237]
[1731209152258,0.001672,77285.0,77283.0,0.16287234]
[1731209152465,0.001672,77285.0,77283.0,0.1]
[1731209153088,0.001672,77285.0,77282.0,0.083]
[1731209155922,0.001672,77285.0,77282.0,0.09974806]
[1731209156754,0.19473438,77283.0,77282.0,0.01674806]
[1731209156964,0.13224102,77284.0,77282.0,0.01674806]
[1731209157182,0.13224102,77284.0,77272.0,0.1865]
[1731209157390,0.13224102,77284.0,77272.0,0.1815]
[1731209157632,0.13224102,77284.0,77273.0,0.005]
[1731209157843,0.13224102,77284.0,77272.0,0.1865]
[1731209158069,0.13224102,77284.0,77272.0,0.0865]
[1731209158504,0.19473438,77283.0,77272.0,0.0815]
[1731209158968,0.19473438,77283.0,77272.0,0.0865]
[1731209159202,0.001672,77285.0,77273.0,0.26499716]
[1731209159415,0.19473438,77283.0,77273.0,0.26499716]
[1731209159630,0.001672,77285.0,77276.0,0.005]
[1731209159847,0.19473438,77283.0,77276.0,0.005]
[1731209162090,0.001672,77285.0,77276.0,0.005]
[1731209162304,0.001672,77285.0,77277.0,0.02585]
[1731209163419,0.001672,77285.0,77276.0,0.02585]
[1731209163641,0.001672,77285.0,77276.0,0.03085]
[1731209164991,0.19473438,77283.0,77276.0,0.02585]
[1731209165423,0.19473438,77283.0,77275.0,0.1]
[1731209165630,0.001672,77285.0,77275.0,0.1]
[1731209168660,0.001672,77285.0,77275.0,0.105]
[1731209169072,0.19473438,77283.0,77275.0,0.105]
[1731209169639,0.19473438,77283.0,77276.0,0.02585]
[1731209173654,0.001672,77285.0,77276.0,0.02585]
[1731209173866,0.001672,77285.0,77277.0,0.02843768]
[1731209174072,0.001672,77285.0,77277.0,0.02585]
[1731209174934,0.001672,77285.0,77276.0,0.02585]
[1731209175358,0.19473438,77283.0,77276.0,0.02585]
[1731209176193,0.19473438,77283.0,77273.0,0.02585]
[1731209177276,0.19473438,77283.0,77271.0,0.02585]
[1731209178192,0.13224102,77282.0,77271.0,0.02585]
[1731209178620,0.001672,77285.0,77272.0,0.00258799]
[1731209178869,0.19473438,77281.0,77272.0,0.00258799]
[1731209180330,0.001672,77285.0,77272.0,0.02843799]
[1731209180536,0.19473438,77283.0,77272.0,0.02843799]
[1731209180955,0.19473438,77283.0,77273.0,0.0775]
[1731209181136,0.19473438,77283.0,77273.0,0.1775]
[1731209181383,0.19473438,77283.0,77274.0,0.12585]
[1731209182738,0.19640838,77283.0,77274.0,0.12585]
[1731209189294,0.001674,77283.0,77275.0,0.00258787]
[1731209189936,0.19473438,77282.0,77275.0,0.00258787]
[1731209192326,0.19473438,77282.0,77276.0,0.02585]
[1731209192549,0.19473438,77282.0,77277.0,0.00258782]
[1731209192788,0.19473438,77282.0,77276.0,0.02585]
[1731209193433,0.19473438,77282.0,77277.0,0.02585]
[1731209194095,0.001674,77283.0,77277.0,0.02585]
[1731209194301,0.001674,77283.0,77274.0,0.1]
[1731209194302,0.001674,77283.0,77275.0,0.02585]
[1731209194513,0.001674,77283.0,77277.0,0.02585]
[1731209194738,0.001674,77283.0,77278.0,0.02843772]
[1731209196020,0.001674,77283.0,77279.0,0.07465]
[1731209196254,0.001674,77283.0,77282.0,0.1]
[1731209197404,0.001674,77283.0,77279.0,0.0488]
[1731209198237,0.001674,77283.0,77279.0,0.06573716]
[1731209201699,0.001674,77283.0,77282.0,0.005]
[1731209201908,0.19473438,77304.0,77293.0,0.005]
[1731209202095,0.19473438,77296.0,77295.0,0.26240929]
[1731209202670,0.19473438,77304.0,77296.0,0.1]
[1731209202883,0.19473438,77304.0,77302.0,0.03869111]
[1731209203419,0.19473438,77312.0,77302.0,0.03869111]
[1731209204396,0.19473438,77312.0,77301.0,0.03869111]
[1731209206150,0.19473438,77312.0,77300.0,0.03869111]
[1731209206363,0.19473438,77312.0,77299.0,0.03869111]
[1731209207269,0.13307702,77306.0,77298.0,0.03869111]
[1731209207475,0.13307702,77306.0,77294.0,0.03869111]
[1731209207684,0.0815,77305.0,77294.0,0.03869111]
[1731209207887,0.0815,77305.0,77293.0,0.03869111]
[1731209208092,0.3269754,77304.0,77293.0,0.03869111]
[1731209208299,0.3269754,77304.0,77294.0,0.03869111]
[1731209208752,0.3269754,77304.0,77293.0,0.03869111]
[1731209209841,0.3269754,77304.0,77292.0,0.08115503]
[1731209210061,0.045,77303.0,77292.0,0.04246392]
[1731209210271,0.13224102,77302.0,77292.0,0.04246392]
[1731209210482,0.13224102,77302.0,77292.0,0.01661392]
[1731209210897,0.13224102,77302.0,77289.0,0.03869111]
[1731209211768,0.13224102,77302.0,77289.0,0.05594927]
[1731209211975,0.13224102,77302.0,77290.0,0.03869111]
[1731209212229,0.13224102,77302.0,77289.0,0.01725816]
[1731209212437,0.13224102,77302.0,77284.0,0.02585]
[1731209213312,0.13224102,77302.0,77283.0,0.02585]
[1731209213518,0.13224102,77302.0,77290.0,0.03864233]
[1731209215099,0.13224102,77302.0,77283.0,0.02585]
[1731209216570,0.13224102,77302.0,77284.0,0.000836]
[1731209216796,0.19473438,77296.0,77284.0,0.000836]
[1731209217247,0.19473438,77287.0,77284.0,0.08948321]
[1731209217456,0.081,77294.0,77284.0,0.08948321]
[1731209217457,0.1301,77294.0,77284.0,0.08948321]
[1731209217657,0.13224102,77293.0,77284.0,0.08948321]
[1731209218062,0.13224102,77293.0,77284.0,0.06533044]
[1731209218708,0.13224102,77293.0,77284.0,0.03948044]
[1731209218929,0.13224102,77293.0,77285.0,0.06281394]
[1731209219143,0.13224102,77293.0,77284.0,0.000836]
[1731209219353,0.19473438,77292.0,77284.0,0.000836]
[1731209219560,0.13224102,77291.0,77284.0,0.000836]
[1731209221945,0.081,77290.0,77284.0,0.000836]
[1731209222168,0.13224102,77289.0,77284.0,0.000836]
[1731209222345,0.113212,77289.0,77284.0,0.000836]
[1731209225443,0.23450929,77288.0,77284.0,0.000836]
[1731209225667,0.13224102,77287.0,77284.0,0.000836]
[1731209226849,0.023,77286.0,77284.0,0.000836]
[1731209227064,0.15524102,77285.0,77284.0,0.000836]
[1731209228312,0.15524102,77285.0,77284.0,0.02224333]
[1731209229878,0.84725785,77285.0,77284.0,0.02224333]
[1731209230092,0.69201683,77285.0,77284.0,0.02224333]
[1731209230298,0.69201683,77285.0,77284.0,0.000836]
[1731209230515,0.69201683,77285.0,77284.0,0.047236]
[1731209233774,0.001672,77291.0,77284.0,0.047236]
[1731209236637,0.001672,77291.0,77284.0,0.000836]
[1731209237446,0.001672,77291.0,77284.0,0.100836]
[1731209238106,0.001672,77291.0,77284.0,0.000836]
[1731209238333,0.001672,77291.0,77288.0,0.005]
[1731209238544,0.001672,77291.0,77290.0,0.0858]
[1731209239839,0.001672,77291.0,77290.0,0.08838711]
[1731209240046,0.001672,77291.0,77290.0,0.0858]
[1731209242122,0.001672,77291.0,77290.0,0.22866865]
[1731209242314,0.001672,77291.0,77290.0,0.20665]
[1731209246451,0.001672,77291.0,77285.0,0.1]
[1731209246684,0.001672,77291.0,77286.0,0.005]
[1731209247304,0.001672,77291.0,77289.0,0.005]
[1731209249035,0.001672,77291.0,77288.0,0.005]
[1731209249448,0.001672,77291.0,77289.0,0.005]
[1731209251445,0.001672,77291.0,77285.0,0.1]
[1731209251446,0.001672,77291.0,77288.0,0.005]
[1731209252004,0.001672,77291.0,77289.0,0.005]
[1731209252586,0.00132864,77291.0,77289.0,0.005]
[1731209254013,0.19473438,77290.0,77285.0,0.105]
[1731209254227,0.00132864,77291.0,77285.0,0.005]
[1731209254979,0.00132864,77291.0,77286.0,0.005]
[1731209255183,0.00132864,77291.0,77285.0,0.005]
[1731209255392,0.00132864,77291.0,77288.0,0.005]
[1731209255802,0.00132864,77291.0,77286.0,0.005]
[1731209256255,0.00132864,77291.0,77285.0,0.005]
[1731209256573,0.00132864,77291.0,77286.0,0.005]
[1731209257439,0.00132864,77291.0,77288.0,0.005]
[1731209258417,0.00132864,77291.0,77286.0,0.005]
[1731209258619,0.00132864,77291.0,77288.0,0.005]
[1731209259287,0.00132864,77291.0,77286.0,0.005]
[1731209259503,0.00132864,77291.0,77288.0,0.005]
[1731209259715,0.00132864,77291.0,77286.0,0.005]
[1731209259916,0.00132864,77291.0,77284.0,0.01765932]
[1731209260432,0.00132864,77291.0,77288.0,0.005]
[1731209261389,0.00132864,77291.0,77288.0,0.01]
[1731209261645,0.00132864,77291.0,77289.0,0.10686578]
[1731209261855,0.00132864,77291.0,77290.0,0.04818]
[1731209262057,0.00132864,77291.0,77290.0,0.02585]
[1731209264013,0.00132864,77291.0,77290.0,0.12585]
[1731209267244,0.00132864,77291.0,77290.0,0.13085]
[1731209267458,0.00132864,77291.0,77290.0,0.12585]
[1731209267662,0.00132864,77291.0,77290.0,0.13085]
[1731209268787,0.00132864,77291.0,77290.0,0.12585]
[1731209269022,0.00132864,77291.0,77289.0,0.02585]
[1731209269941,0.00132864,77291.0,77288.0,0.005]
[1731209271748,0.00132864,77291.0,77289.0,0.00258735]
[1731209272831,0.0809,77297.0,77289.0,0.00258735]
[1731209273073,0.19473438,77296.0,77288.0,0.005]
[1731209273529,0.19473438,77296.0,77289.0,0.000836]
[1731209273733,0.001672,77291.0,77289.0,0.000836]
[1731209274986,0.001672,77291.0,77290.0,0.00258736]
[1731209275633,0.001672,77291.0,77289.0,0.000836]
[1731209276476,0.001672,77291.0,77290.0,0.00258737]
[1731209276680,0.001672,77291.0,77289.0,0.000836]
[1731209280542,0.001672,77291.0,77290.0,0.03873958]
[1731209285431,0.001672,77291.0,77290.0,0.03957558]
[1731209285822,0.001672,77291.0,77290.0,0.000836]
[1731209285947,0.001672,77291.0,77290.0,0.03957894]
[1731209287704,0.0809,77302.0,77290.0,0.08800875]
[1731209287909,0.19473438,77296.0,77291.0,0.08717275]
[1731209288076,0.0809,77302.0,77292.0,0.08717275]
[1731209288275,0.0809,77302.0,77293.0,0.08717275]
[1731209288562,0.0752,77309.0,77295.0,0.005]
[1731209288781,0.19473438,77305.0,77300.0,0.1]
[1731209289012,0.19473438,77305.0,77301.0,0.08717275]
[1731209289215,0.19473438,77305.0,77301.0,0.08716291]
[1731209289406,0.0752,77315.0,77302.0,0.08716291]
[1731209289619,0.0752,77315.0,77303.0,0.08716291]
[1731209289823,0.0752,77315.0,77304.0,0.08716291]
[1731209290000,0.0752,77315.0,77305.0,0.08716291]
[1731209290334,0.0485,77317.0,77305.0,0.08716291]
[1731209291436,0.0752,77319.0,77305.0,0.08716291]
[1731209291681,0.19473438,77322.0,77305.0,0.11573907]
[1731209291859,0.19473438,77322.0,77305.0,0.21573907]
[1731209292273,0.19473438,77322.0,77305.0,0.20285]
[1731209292505,0.19473438,77322.0,77305.0,0.21569199]
[1731209293123,0.19473438,77322.0,77305.0,0.11567718]
[1731209293782,0.19473438,77322.0,77305.0,0.21567718]
[1731209295725,0.19473438,77322.0,77305.0,0.3529182]
[1731209295951,0.19473438,77313.0,77305.0,0.35288148]
[1731209299265,0.19473438,77313.0,77305.0,0.35285643]
[1731209300315,0.19473438,77313.0,77305.0,0.13861541]
[1731209300525,0.19473438,77313.0,77305.0,0.03861541]
[1731209302417,0.19473438,77313.0,77305.0,0.06446541]
[1731209304208,0.18211533,77313.0,77305.0,0.06446541]
[1731209304414,0.17618547,77313.0,77312.0,0.03860929]
[1731209304622,0.17618547,77313.0,77312.0,0.0772247]
[1731209304824,0.19473438,77322.0,77312.0,0.0772247]
[1731209305028,0.19473438,77322.0,77313.0,0.03861541]
[1731209305239,0.13224102,77321.0,77314.0,0.03861541]
[1731209305419,0.10427837,77318.0,77315.0,0.03861541]
[1731209305656,0.10427837,77318.0,77316.0,0.03861541]
[1731209305869,0.10427837,77318.0,77316.0,0.03861201]
[1731209306079,0.10427837,77318.0,77317.0,0.03861201]
[1731209306721,0.0789,77320.0,77317.0,0.03861201]
[1731209306948,0.0789,77320.0,77318.0,0.03861201]
[1731209307157,0.0789,77320.0,77319.0,0.03861201]
[1731209309064,0.080572,77320.0,77319.0,0.03861201]
[1731209309280,0.080572,77320.0,77306.0,0.14270015]
[1731209309487,0.080572,77320.0,77315.0,0.03862282]
[1731209309691,0.080572,77320.0,77316.0,0.03862282]
[1731209309868,0.080572,77320.0,77317.0,0.03862282]
[1731209310117,0.080572,77320.0,77318.0,0.03862282]
[1731209310336,0.080572,77320.0,77319.0,0.03862282]
[1731209311791,0.001672,77320.0,77319.0,0.14290119]
[1731209312994,0.001672,77320.0,77319.0,0.10427837]
[1731209313193,0.001672,77320.0,77319.0,0.14290331]
[1731209313962,0.001672,77320.0,77319.0,0.14548956]
[1731209315690,0.07000161,77333.0,77319.0,0.14548956]
[1731209315910,0.19473438,77328.0,77320.0,0.03862494]
[1731209316126,0.19473438,77328.0,77327.0,0.03863694]
[1731209316375,0.19473438,77328.0,77327.0,0.03862494]
[1731209316581,0.07000161,77333.0,77327.0,0.03862494]
[1731209316808,0.0497,77335.0,77328.0,0.07725921]
[1731209317016,0.0497,77335.0,77319.0,0.10686462]
[1731209317017,0.19473438,77333.0,77329.0,0.07725921]
[1731209317221,0.0497,77335.0,77330.0,0.03862494]
[1731209317432,0.0497,77335.0,77331.0,0.03862494]
[1731209317638,0.0497,77335.0,77332.0,0.03862494]
[1731209317845,0.0497,77335.0,77333.0,0.03862494]
[1731209318050,0.0497,77335.0,77334.0,0.03862494]
[1731209319240,0.0497,77335.0,77334.0,0.03865309]
[1731209321783,0.051372,77335.0,77334.0,0.03865309]
[1731209323022,0.001672,77335.0,77322.0,0.1]
[1731209323219,0.001672,77335.0,77334.0,0.03865422]
[1731209323329,0.001672,77335.0,77331.0,0.03865422]
[1731209323539,0.001672,77335.0,77332.0,0.03865422]
[1731209323793,0.001672,77335.0,77333.0,0.03865422]
[1731209323999,0.001672,77335.0,77331.0,0.03865413]
[1731209324171,0.001672,77335.0,77332.0,0.03865413]
[1731209324473,0.4515754,77334.0,77333.0,0.03865413]
[1731209324698,0.36111939,77334.0,77333.0,0.03865413]
[1731209325249,0.001672,77335.0,77333.0,0.03865413]
[1731209325456,0.001672,77335.0,77334.0,0.03865413]
[1731209326530,0.047972,77335.0,77334.0,0.03865413]
[1731209326734,0.126272,77335.0,77334.0,0.03865413]
[1731209326980,0.25851302,77335.0,77334.0,0.03865413]
[1731209339548,0.25851302,77335.0,77333.0,0.000835]
[1731209339694,0.126272,77335.0,77334.0,0.03870672]
[1731209340656,0.126272,77335.0,77333.0,0.000835]
[1731209340864,0.126272,77335.0,77334.0,0.03871393]
[1731209342717,0.25851302,77335.0,77334.0,0.03871393]
[1731209342922,0.13391302,77335.0,77334.0,0.03871393]
[1731209348858,0.13391302,77335.0,77333.0,0.000835]
[1731209349073,0.001672,77335.0,77334.0,0.03872483]
[1731209351532,0.26119139,77335.0,77334.0,0.03872483]
[1731209351722,0.30619139,77335.0,77334.0,0.03872483]
[1731209352713,0.023,77334.0,77333.0,0.000835]
[1731209352878,0.15524102,77334.0,77333.0,0.03956759]
[1731209355798,0.15524102,77334.0,77333.0,0.03956974]
[1731209357304,0.84725785,77334.0,77333.0,0.03956974]
[1731209359170,0.84725785,77334.0,77333.0,0.000835]
[1731209359376,0.84725785,77334.0,77333.0,0.03955916]
[1731209360623,0.95153622,77334.0,77333.0,0.03955916]
[1731209366314,0.95153622,77334.0,77333.0,0.000835]
[1731209366529,0.95153622,77334.0,77333.0,0.03954509]
[1731209367256,0.69201683,77334.0,77333.0,0.03954509]
[1731209368333,0.69368683,77334.0,77333.0,0.03954509]
[1731209368567,0.00167,77334.0,77333.0,0.03954509]
[1731209368767,0.00167,77334.0,77333.0,0.22562346]
[1731209369015,0.00167,77334.0,77333.0,0.12134509]
[1731209369757,0.00167,77334.0,77333.0,0.17061431]
[1731209370337,0.001672,77335.0,77333.0,0.17061431]
[1731209370568,0.001672,77335.0,77334.0,0.03867931]
[1731209374118,0.001672,77335.0,77334.0,0.04126529]
[1731209374563,0.001672,77335.0,77334.0,0.12306529]
[1731209376633,0.001672,77335.0,77334.0,0.12299531]
[1731209377559,0.001672,77335.0,77334.0,0.22299531]
[1731209378225,0.001672,77335.0,77334.0,0.32727368]
[1731209378429,0.001672,77335.0,77334.0,0.3246877]
[1731209378845,0.001672,77335.0,77334.0,0.3753877]
[1731209379065,0.001672,77335.0,77334.0,0.64775709]
[1731209379275,0.001672,77335.0,77334.0,0.54447872]
[1731209379538,0.001672,77335.0,77334.0,0.64875709]
[1731209379748,0.000732,77374.0,77358.0,0.25155]
[1731209379949,0.89089966,77359.0,77358.0,0.53667872]
[1731209381445,0.89089966,77359.0,77358.0,0.59448282]
[1731209381883,0.89089966,77359.0,77358.0,0.59548282]
[1731209382116,0.89089966,77359.0,77358.0,0.43240035]
[1731209383159,0.89089966,77359.0,77358.0,0.39379102]
[1731209383385,0.89089966,77359.0,77358.0,0.43223441]
[1731209384036,0.89089966,77359.0,77358.0,0.26914339]
[1731209384273,0.89089966,77359.0,77358.0,0.2257]
[1731209384473,0.89089966,77359.0,77358.0,0.26414339]
[1731209384890,0.89089966,77359.0,77358.0,0.26914339]
[1731209385097,0.89089966,77359.0,77358.0,0.26911029]
[1731209385313,0.89089966,77359.0,77358.0,0.29076402]
[1731209385532,0.89089966,77359.0,77358.0,0.25235373]
[1731209386421,0.89089966,77359.0,77358.0,0.09665373]
[1731209389719,0.89089966,77359.0,77358.0,0.19665373]
[1731209390169,0.89089966,77359.0,77358.0,0.23504763]
[1731209390845,0.89089966,77359.0,77358.0,0.23004763]
[1731209391063,0.89089966,77359.0,77358.0,0.23504763]
[1731209392495,0.89173466,77359.0,77358.0,0.23504763]
[1731209393401,0.89173466,77359.0,77358.0,0.13506141]
[1731209393618,0.89173466,77359.0,77358.0,0.23506141]
[1731209393839,1.02397568,77359.0,77358.0,0.05506141]
[1731209394273,0.89173466,77359.0,77358.0,0.01665373]
[1731209394722,0.89173466,77359.0,77358.0,0.03840768]
[1731209396651,0.89173466,77359.0,77358.0,0.03848491]
[1731209400294,0.89173466,77359.0,77358.0,0.05538824]
[1731209401060,0.89173466,77359.0,77358.0,0.01690333]
[1731209401268,0.89173466,77359.0,77358.0,0.05543102]
[1731209401486,0.89173466,77359.0,77358.0,0.03852769]
[1731209402845,0.89173466,77359.0,77358.0,0.13854591]
[1731209403071,0.89173466,77359.0,77358.0,0.03854591]
[1731209403909,0.89173466,77359.0,77358.0,0.04021791]
[1731209404394,0.89173466,77359.0,77358.0,0.05663439]
[1731209412936,0.89173466,77359.0,77358.0,0.05673838]
[1731209414039,0.89173466,77359.0,77358.0,0.0567426]
[1731209416253,0.89173466,77359.0,77358.0,0.05674952]
[1731209416672,1.02397568,77359.0,77358.0,0.05674952]
[1731209416845,1.02397568,77359.0,77358.0,0.04033304]
[1731209419477,1.04116594,77359.0,77358.0,0.001672]
[1731209419692,1.04116594,77359.0,77358.0,0.04034166]
[1731209422423,1.06416594,77359.0,77358.0,0.04034166]
[1731209423038,1.06416594,77359.0,77358.0,0.04035221]
[1731209423508,1.06416594,77359.0,77358.0,0.001672]
[1731209423725,2.09127829,77359.0,77358.0,0.04034895]
[1731209423945,1.98718053,77359.0,77358.0,0.001672]
[1731209424637,1.98918053,77359.0,77358.0,0.001672]
[1731209424848,1.98718053,77359.0,77358.0,0.001672]
[1731209425929,1.98918053,77359.0,77358.0,0.001672]
[1731209427458,1.99918053,77359.0,77358.0,0.001672]
[1731209427680,2.10327829,77359.0,77358.0,0.001672]
[1731209428151,0.005,77342.0,77340.0,0.19473438]
[1731209428361,2.04547605,77359.0,77340.0,0.19473438]
[1731209428362,1.07825561,77341.0,77340.0,0.19473438]
[1731209428795,0.1469,77338.0,77332.0,0.19473438]
[1731209429007,0.10409776,77335.0,77332.0,0.19473438]
[1731209429233,0.25933878,77335.0,77315.0,0.19473438]
[1731209429462,1.18435337,77335.0,77315.0,0.19473438]
[1731209429684,0.1519,77334.0,77315.0,0.19473438]
[1731209429902,0.28414102,77334.0,77315.0,0.19473438]
[1731209430136,0.97615785,77334.0,77315.0,0.19473438]
[1731209430353,0.10409776,77317.0,77315.0,0.19473438]
[1731209430566,0.13224102,77316.0,77315.0,0.19473438]
[1731209431023,0.13224102,77316.0,77307.0,0.19473438]
[1731209431242,0.10409776,77313.0,77308.0,0.01714067]
[1731209431460,0.13224102,77312.0,77296.0,0.082]
[1731209431672,0.13224102,77312.0,77307.0,0.01692528]
[1731209431880,0.13224102,77312.0,77296.0,0.082]
[1731209432344,0.21773438,77311.0,77296.0,0.082]
[1731209432566,0.023,77309.0,77291.0,0.046836]
[1731209432785,0.13224102,77308.0,77291.0,0.000836]
[1731209433248,0.13224102,77308.0,77291.0,0.01736949]
[1731209433509,0.19473438,77307.0,77291.0,0.000836]
[1731209433718,0.13224102,77306.0,77291.0,0.000836]
[1731209443007,0.023,77305.0,77291.0,0.000836]
[1731209443221,0.023,77303.0,77291.0,0.000836]
[1731209443428,0.023,77301.0,77291.0,0.000836]
[1731209443610,0.13224102,77300.0,77291.0,0.000836]
[1731209444078,0.023,77299.0,77291.0,0.000836]
[1731209444325,0.13224102,77298.0,77291.0,0.000836]
[1731209444541,0.023,77297.0,77291.0,0.000836]
[1731209444742,0.13224102,77296.0,77291.0,0.000836]
[1731209447553,0.13224102,77296.0,77292.0,0.19473438]
[1731209447767,0.023,77302.0,77291.0,0.000836]
[1731209447984,0.19473438,77300.0,77291.0,0.000836]
[1731209448191,0.13224102,77299.0,77291.0,0.000836]
[1731209456543,0.023,77302.0,77291.0,0.000836]
[1731209456676,0.15524102,77302.0,77291.0,0.000836]
[1731209458805,0.69201683,77305.0,77297.0,0.10427969]
[1731209458957,0.19473438,77304.0,77297.0,0.10427969]
[1731209459163,0.69201683,77305.0,77301.0,0.10427969]
[1731209459371,0.0485,77316.0,77302.0,0.02415835]
[1731209459515,0.19473438,77308.0,77303.0,0.02415835]
[1731209459718,0.0825,77318.0,77304.0,0.10737016]
[1731209459943,0.19473438,77314.0,77306.0,0.10427969]
[1731209460156,0.131,77323.0,77311.0,0.10427969]
[1731209460361,0.69201683,77325.0,77316.0,0.10427969]
[1731209460362,0.19473438,77322.0,77316.0,0.10427969]
[1731209460562,0.19473438,77322.0,77317.0,0.02417016]
[1731209460778,0.19473438,77322.0,77318.0,0.02417016]
[1731209461013,0.19473438,77322.0,77319.0,0.02417016]
[1731209461217,0.10427969,77320.0,77309.0,0.1]
[1731209461429,0.01693866,77323.0,77310.0,0.02416682]
[1731209461629,0.023,77325.0,77309.0,0.1]
[1731209461841,0.023,77319.0,77304.0,0.01652273]
[1731209462041,0.023,77317.0,77306.0,0.19473438]
[1731209462253,0.023,77311.0,77291.0,0.026666]
[1731209462455,0.023,77309.0,77297.0,0.01655977]
[1731209462700,0.023,77307.0,77297.0,0.01655977]
[1731209462893,0.023,77305.0,77297.0,0.01655977]
[1731209463101,0.023,77305.0,77291.0,0.026666]
[1731209463102,0.13224102,77304.0,77291.0,0.026666]
[1731209463307,0.023,77303.0,77291.0,0.026666]
[1731209463504,0.13224102,77302.0,77291.0,0.04371369]